[Event "FRA-ch Teams Top 16-Haute 2022"]
[Site "Chartres"]
[Date "2022.06.19"]
[Round "11.26"]
[White "Naiditsch, Arkadij"]
[Black "Moussard, Jules"]
[Result "1-0"]
[ECO "B90"]
[WhiteElo "2654"]
[BlackElo "2651"]
[Annotator "TA"]
[PlyCount "72"]
[EventDate "2022.06.16"]
[EventType "team-tourn"]
[EventCountry "FRA"]
[SourceTitle "playchess.com"]
[Source "ChessBase"]
[SourceQuality "1"]
[TimeControl "40/5400+30:1800+30"]

{[%evp 18,72,18,15,11,0,0,0,0,-12,88,79,87,80,83,64,110,91,93,77,117,108,150,106,116,116,119,105,111,109,107,83,68,56,57,61,123,94,106,62,98,97,541,498,690,669,843,888,888,883,766,758,1535,1355,1285,1271,1118]} 1. e4 {[%emt 1:31:00]} c5 {[%emt 0:00:37]} 2. Nf3 {[%emt 0:00:00]} d6 {[%emt 0:00:20]} 3. d4 {[%emt 0:00:00]} cxd4 {[%emt 0:00:05]} 4. Nxd4 {[%emt 0:00:00]} Nf6 {[%emt 0:00:07]} 5. Nc3 {[%emt 0:00:00]} a6 {[%emt 0:00:04]} 6. Be3 {[%emt 0:00:00]} e5 {[%emt 0:00:44]} 7. Nf3 {[%emt 0:00:00]} Be7 {[%emt 0:00:43]} 8. Bc4 {[%emt 0:00:00]} O-O {[%emt 0:00:45]} 9. O-O {[%emt 0:00:00]} Nc6 {[%emt 0:01:01][%cal Bb8c6,Bc6a5,Ba5c4][%mdl 32]} 10. Qe2 {[%emt 0:00:00]} Na5 {[%emt 0:14:06] B90: Sicilian Najdorf: Unusual White 6th moves, 6 Be3 Ng4 and 6 Be3 e5.} 11. Bd5 {[%emt 0:00:00]} Be6 {[%emt 0:04:21]} 12. Rfd1 {[%emt 0:00:00][%cal Of3e5]} Qc7 {[%emt 0:09:12] The position is equal.} 13. Bg5 {[%emt 0:00:00] [#]} Bxd5 $146 {[%emt 0:15:31]} (13... Rac8 $11) ({Predecessor:} 13... Nxd5 14. Nxd5 Bxd5 15. Rxd5 Bxg5 16. Nxg5 h6 17. Nf3 Nc4 18. b3 Nb6 19. Rd3 Rfd8 {1-0 (29) Neubauer,M (2421)-Wohlfahrt,H (2285) Playchess.com INT 2020}) 14. Rxd5 $16 {[%emt 0:00:00]} ({Of course not} 14. Nxd5 Nxd5 15. Rxd5 f6 $11) ({Much weaker is} 14. exd5 Rac8 $11) 14... Nc4 {[%emt 0:21:40]} (14... Nxd5 $2 15. Nxd5 Qc4 16. Qxc4 Nxc4 17. Bxe7 $18) 15. Bxf6 {[%emt 0:00:00]} Bxf6 {[%emt 0:00:13]} 16. Rd3 {[%emt 0:00:00]} Rfc8 {[%emt 0:05:48]} (16... Nxb2 $14 {was preferrable.} 17. Nd5 Qd8) 17. Nd5 {[%emt 0:00:00]} Qd8 {[%emt 0:00:03]} 18. Rb3 {[%emt 0:00:00]} b5 {[%emt 0:03:52]} 19. a4 $1 {[%emt 0:00:00]} Nb6 {[%emt 0:03:48]} 20. Nxb6 {[%emt 0:00:00] White is much more active.} ({Don't take} 20. axb5 $6 Nxd5 21. exd5 axb5 22. Rxa8 Rxa8 $14) 20... Qxb6 {[%emt 0:00:05]} 21. axb5 {[%emt 0:00:00]} axb5 {[%emt 0:00:48] [#]} 22. Rxa8 {[%emt 0:00:00]} Rxa8 {[%emt 0:00:02]} 23. g3 {[%emt 0:00:00]} Rb8 {[%emt 0:01:14]} 24. Ne1 {[%emt 0:00:00][%cal Bf3e1,Be1c2,Bc2e3,Be3d5,Bd5f6][%mdl 32]} Qc6 {[%emt 0:05:00]} 25. c4 $40 {[%emt 0:00:00][%mdl 128] And now Nc2 would win. White has some attack.} b4 {[%emt 0:00:02]} 26. Nc2 {[%emt 0:00:00]} Qc5 {[%emt 0:03:47]} ({Better is} 26... Qa4 $14 27. Qd3 g6) 27. Ne3 {[%emt 0:00:00]} Bd8 {[%emt 0:00:54]} 28. Nd5 {[%emt 0:00:00]} Ba5 {[%emt 0:01:15]} 29. h4 {[%emt 0:14:00]} Kf8 $2 {[%mdl 8192] [#] Loses the game.} (29... Bd8 $16) 30. Qh5 $1 $18 {[%emt 0:00:00] White is clearly winning.} h6 {[%emt 0:01:41]} 31. Rf3 {[%emt 0:00:00][%csl Gf3][%cal Rh5f7]} Rb7 {[%emt 0:00:17]} 32. Qg6 {[%emt 0:00:00] White wants to mate with Qh7.} Kg8 {[%emt 0:00:02] Inhibits Qh7+.} 33. Nf6+ $1 {[%emt 0:00:00]} Kf8 {[%emt 0:00:02]} 34. Nh5 {[%emt 0:00:00]} Qxc4 {[%emt 0:00:03]} 35. Qxg7+ {[%emt 0:00:00]} Ke7 {[%emt 0:00:19]} 36. Nf6 {[%emt 0:00:00]} Kd8 {[%emt 0:00:56] Weighted Error Value: White=0.09 (flawless) /Black=0.70} 1-0

[Event "FRA-ch Teams Top 16-Haute 2022"]
[Site "Chartres"]
[Date "2022.06.19"]
[Round "11.27"]
[White "Esipenko, Andrey"]
[Black "Ragger, Markus"]
[Result "1-0"]
[ECO "D78"]
[WhiteElo "2709"]
[BlackElo "2636"]
[Annotator "TA"]
[PlyCount "79"]
[EventDate "2022.06.16"]
[EventType "team-tourn"]
[EventCountry "FRA"]
[SourceTitle "playchess.com"]
[Source "ChessBase"]
[SourceQuality "1"]
[TimeControl "40/5400+30:1800+30"]

{[%evp 11,79,17,39,0,0,-33,-29,-32,-32,-40,-29,-37,-10,-8,39,40,50,37,40,50,47,41,32,20,60,45,46,37,79,74,93,104,209,54,52,58,65,43,55,76,196,180,400,341,552,549,740,737,713,731,731,694,735,706,734,716,724,714,735,699,887,877,964,958,952,940,889,915,852,843]} 1. d4 {[%emt 1:31:00]} Nf6 {[%emt 1:31:00]} 2. c4 {[%emt 0:00:30]} g6 {[%emt 0:00:00]} 3. g3 {[%emt 0:00:00]} c6 {[%emt 0:00:00]} 4. Bg2 {[%emt 0:00:00]} d5 {[%emt 0:00:00]} 5. Nf3 {[%emt 0:00:00]} Bg7 {[%emt 0:00:00]} 6. O-O {[%emt 0:00:00]} O-O {[%emt 0:00:00]} 7. a4 {[%emt 0:00:00] D78: Fianchetto Grünfeld: 6 0-0 c6.} Be6 {[%emt 0:00:00]} 8. Nc3 {[%emt 0:00:00]} dxc4 {[%emt 0:00:00]} 9. e4 {[%emt 0:00:00] Black has an edge.} Na6 {[%emt 0:00:00]} 10. h3 {[%emt 0:00:00]} Nb4 {[%emt 0:00:00]} 11. Be3 {[%emt 0:00:00]} a5 {[%emt 0:00:00]} 12. Qe2 {[%emt 0:00:00] [#]} h6 $146 {[%emt 0:00:00]} (12... Ne8 $11 {was preferrable.}) ({Predecessor:} 12... Qc8 13. Kh2 Rd8 14. Ng5 Bd7 15. Qxc4 Be8 16. Rac1 Nd7 17. Qe2 Nf8 18. d5 Qb8 {½-½ (85) Giri,A (2780)-Dubov,D (2710) chess24.com INT 2021}) 13. Rad1 $14 {[%emt 0:00:00][%mdl 1024] White has compensation.} Ne8 {[%emt 0:00:00]} 14. Ne5 {[%emt 0:00:00]} Nd6 {[%emt 0:00:00]} 15. f4 {[%emt 0:00:00]} Qe8 {[%emt 0:00:00]} 16. Kh2 {[%emt 0:00:00]} f6 {[%emt 0:00:00][%cal Bf7f6,Bf6f5][%mdl 32]} 17. Nf3 {[%emt 0:00:00]} f5 {[%emt 0:00:00]} 18. e5 $1 {[%emt 0:00:00]} Nc8 $1 {[%emt 0:00:00]} 19. Nh4 {[%emt 0:00:00]} Nd5 {[%emt 0:00:00]} 20. g4 {[%emt 0:00:00] White is more active.} Ncb6 {[%emt 0:00:00]} 21. Bd2 {[%emt 0:00:00]} Kh7 {[%emt 0:00:00] [#]} (21... Qf7 $16) 22. gxf5 $2 {[%emt 0:00:00]} (22. Rg1 $1 $18) 22... Bxf5 {[%emt 0:00:00]} 23. Be4 {[%emt 0:00:00] Against Bd3. Strongly threatening Rg1.} e6 $1 {[%emt 0:00:00]} 24. Rg1 $1 {[%emt 0:00:00] aiming for Rxg6.} Ne7 {[%emt 0:00:00]} 25. Rg2 {[%emt 0:00:00]} Rd8 {[%emt 0:00:00] [#] White leaves nothing to chance now.} (25... Rg8 $16 {was worth a try.}) 26. Rdg1 $1 $18 {[%emt 0:00:00]} Qf7 $2 {[%emt 0:05:26]} (26... Rd7 27. Bxf5 exf5) 27. Bxf5 {[%emt 0:00:00][%mdl 64] Deflection} Nxf5 {[%emt 0:00:23]} (27... gxf5 {was called for.} 28. Rxg7+ Qxg7) 28. Rxg6 {[%emt 0:00:00][%cal Oc3e4] Black must now prevent Ne4! White is clearly winning.} Nxh4 {[%emt 0:01:07]} 29. Rxg7+ {[%emt 0:00:00]} Qxg7 {[%emt 0:00:02]} 30. Rxg7+ {[%emt 0:00:00]} Kxg7 {[%emt 0:00:02]} 31. Qg4+ {[%emt 0:00:00]} Ng6 {[%emt 0:08:00]} 32. Qxe6 {[%emt 0:00:00]} Rxd4 {[%emt 0:00:00]} 33. Be3 {[%emt 0:00:00][%mdl 64] Skewer} Rdxf4 {[%emt 0:00:00]} 34. Bxb6 {[%emt 0:00:00]} R8f5 {[%emt 0:00:00]} 35. Qd7+ {[%emt 0:00:00]} Kg8 {[%emt 0:00:00]} 36. Be3 {[%emt 0:05:27]} Rf3 {[%emt 0:00:00] [#]} 37. Ne4 $1 {[%emt 0:01:04]} Nxe5 {[%emt 0:00:31]} 38. Qe6+ {[%emt 0:00:32]} Nf7 {[%emt 0:00:13]} 39. Qg6+ {[%emt 0:05:24]} Kf8 {[%emt 0:02:02]} 40. Bc5+ {[%emt 0:00:46] Weighted Error Value: White=0.11 (very precise) /Black=0.33} 1-0

[Event "FRA-ch Teams Top 16-Haute 2022"]
[Site "Chartres"]
[Date "2022.06.19"]
[Round "11.28"]
[White "Bacrot, Etienne"]
[Black "Alekseenko, Kirill"]
[Result "1/2-1/2"]
[ECO "B51"]
[WhiteElo "2638"]
[BlackElo "2698"]
[Annotator "TA"]
[PlyCount "30"]
[EventDate "2022.06.16"]
[EventType "team-tourn"]
[EventCountry "FRA"]
[SourceTitle "playchess.com"]
[Source "ChessBase"]
[SourceQuality "1"]
[TimeControl "40/5400+30:1800+30"]

{[%evp 9,30,11,20,0,0,0,0,12,2,2,13,4,7,12,2,0,0,0,0,0,0,0,0]} 1. e4 {[%emt 0:05:00]} c5 {[%emt 0:00:15]} 2. Nf3 {[%emt 0:00:04]} d6 {[%emt 0:00:29]} 3. Bb5+ {[%emt 0:00:07]} Nd7 {[%emt 0:00:32]} 4. Ba4 {[%emt 0:01:50]} Ngf6 {[%emt 0:01:11]} 5. O-O {[%emt 0:02:36]} e6 {[%emt 0:00:20] The position is equal.} 6. d3 {[%emt 0:00:52] B51: Sicilian: Moscow Variation (3 Bb5+) without 3...Bd7.} Be7 {[%emt 0:00:31]} 7. c4 {[%emt 0:00:20]} O-O {[%emt 0:00:31]} 8. Nc3 {[%emt 0:00:05]} Ne5 {[%emt 0:00:14]} 9. Nxe5 {[%emt 0:06:57]} dxe5 {[%emt 0:00:35]} 10. f4 {[%emt 0:00:06]} exf4 {[%emt 0:00:11]} 11. Bxf4 {[%emt 0:00:29]} Bd7 {[%emt 0:00:31] [#]} 12. Bc2 $146 {[%emt 0:14:46]} ({Predecessor:} 12. e5 Bxa4 13. Nxa4 Nd7 14. Qf3 Bg5 15. Rae1 Bxf4 16. Qxf4 Qe7 17. Qe4 Nb6 18. Nc3 {½-½ (33) Swiercz,D (2664)-Sorokin,A (2536) Dulles 2022}) 12... Bc6 {[%emt 0:09:29]} 13. Kh1 {[%emt 0:00:11]} Nd7 {[%emt 0:10:30]} 14. Qe2 {[%emt 0:02:32]} Bg5 {[%emt 0:14:59]} 15. Bd6 {[%emt 0:00:28]} Be7 {[%emt 0:00:27] An uneventful encounter.  Weighted Error Value: White=0.02 (flawless) /Black=0.01 (flawless)} 1/2-1/2

[Event "FRA-ch Teams Top 16-Haute 2022"]
[Site "Chartres"]
[Date "2022.06.19"]
[Round "11.29"]
[White "Gozzoli, Yannick"]
[Black "Rodshtein, Maxim"]
[Result "0-1"]
[ECO "E04"]
[WhiteElo "2591"]
[BlackElo "2588"]
[Annotator "TA"]
[PlyCount "108"]
[EventDate "2022.06.16"]
[EventType "team-tourn"]
[EventCountry "FRA"]
[SourceTitle "playchess.com"]
[Source "ChessBase"]
[SourceQuality "1"]
[TimeControl "40/5400+30:1800+30"]

{[%evp 11,108,-5,27,33,31,26,18,25,26,20,40,47,56,29,41,38,33,30,33,33,26,24,10,25,34,31,42,47,145,64,64,0,0,0,0,-82,0,-83,-80,-89,-85,-97,-80,-143,-140,-133,-135,-144,-121,-167,-164,-167,-168,-147,-166,-191,-172,-187,-178,-180,-175,-166,-173,-191,-163,-184,-181,-204,-204,-187,-190,-149,-135,-189,-165,-158,-162,-180,-183,-179,-163,-211,-184,-198,-198,-216,-186,-191,-175,-182,-159,-281,-296,-304,-286,-392,-385,-639,-560]} 1. d4 {[%emt 0:00:09]} Nf6 {[%emt 0:00:21]} 2. Nf3 {[%emt 0:00:28]} e6 {[%emt 0:00:49]} 3. c4 {[%emt 0:00:09]} d5 {[%emt 0:00:09]} 4. g3 {[%emt 0:00:06]} Bb4+ {[%emt 0:00:38]} 5. Nbd2 {[%emt 0:00:06]} dxc4 {[%emt 0:09:18]} 6. Bg2 {[%emt 0:02:52]} Nc6 {[%emt 0:10:59]} 7. O-O {[%emt 0:04:56] E04: Open Catalan: 5 Nf3.} c3 {[%emt 0:05:14] 7...c3 is better than 7...Bxd2.} 8. Nc4 {[%emt 0:10:39]} O-O {[%emt 0:15:54]} 9. a3 {[%emt 0:01:00] The position is equal.} cxb2 $1 {[%emt 0:00:49]} 10. Bxb2 {[%emt 0:00:04]} Be7 {[%emt 0:09:57]} 11. Qc2 {[%emt 0:01:45] [#]} Rb8 $146 {[%emt 0:01:54]} ({Predecessor:} 11... Nb8 12. Rfc1 Nbd7 13. a4 a5 14. Bc3 c6 15. e4 b6 16. Rab1 Ba6 17. Nfd2 Qc7 {1-0 (40) Seliverstov,V (2430)-Shorokhov,A (2467) Moscow 2015}) 12. Rac1 {[%emt 0:04:15]} b5 {[%emt 0:06:08]} 13. Nfe5 {[%emt 0:08:53]} Nxe5 {[%emt 0:00:08]} (13... Nxd4 14. Bxd4 Qxd4 15. Nc6 Qxc4 16. Qxc4 bxc4 17. Nxb8 $16) 14. Nxe5 {[%emt 0:00:05] aiming for Nc6.} Bb7 {[%emt 0:00:03]} 15. Bxb7 {[%emt 0:15:56]} Rxb7 {[%emt 0:00:04]} 16. Nc6 {[%emt 0:00:03]} Qd7 {[%emt 0:00:08]} 17. e4 {[%emt 0:00:04]} Rc8 {[%emt 0:07:29]} 18. Rfd1 {[%emt 0:00:57][%cal Od4d5]} Rb6 {[%emt 0:08:03]} 19. d5 {[%emt 0:09:23]} exd5 {[%emt 0:01:53]} (19... Re8 $1 $14) 20. Bxf6 {[%emt 0:08:34]} (20. e5 $1 $16 {[%cal Re5f6]} Rxc6 21. Qxc6 Qxc6 22. Rxc6) 20... Bxf6 $14 {[%emt 0:00:45]} 21. e5 {[%emt 0:02:24]} (21. Nxa7 $14 Ra8 22. Rxd5) 21... Be7 $11 {[%emt 0:07:53]} 22. Rxd5 {[%emt 0:05:30]} Qe6 $36 {[%emt 0:00:08][%mdl 2048] Black has some pressure.} 23. Rd3 {[%emt 0:00:37]} (23. Nxa7 $11 Ra8 24. Qxc7 Qxd5 25. Qxb6) 23... a5 {[%emt 0:01:39]} (23... Bf8 $1 $17) 24. f4 {[%emt 0:12:44]} (24. Na7 $11 {remains equal.} Rd8 25. Rxd8+ Bxd8 26. Qd2) 24... Bf8 $17 {[%emt 0:01:17]} 25. Na7 {[%emt 0:02:04]} Rcb8 {[%emt 0:02:46] White must now prevent ...c5.} 26. Nc6 {[%emt 0:00:19]} Re8 {[%emt 0:02:21][%cal Bb8e8,Be8e5,Be5e4,Be4a4][%mdl 32]} 27. Nd4 {[%emt 0:02:40]} ({White should play} 27. Nd8 Qc8 28. Nc6 (28. Qxc7 Qxc7 29. Rxc7 b4 $17)) 27... Qg6 {[%emt 0:00:22]} 28. f5 {[%emt 0:03:25] [#]} Qg4 {[%emt 0:04:19]} 29. Qxc7 {[%emt 0:00:33]} Qe4 {[%emt 0:00:09][%csl LRd3,LRe5]} 30. Rcd1 {[%emt 0:04:10]} (30. Qxb6 $2 {is the wrong capture.} Qxd3 31. Re1 Qc3 $19) (30. e6 $17 fxe6 31. Qxb6 Qxd3 32. Nxe6) 30... Rb7 $19 {[%emt 0:00:23]} 31. Qc6 {[%emt 0:00:10]} Rxe5 {[%emt 0:00:15]} 32. Qxe4 {[%emt 0:00:13]} Rxe4 {[%emt 0:00:04]} 33. Nc6 {[%emt 0:00:07] [#]} Rc7 $1 {[%emt 0:01:05]} 34. Nxa5 {[%emt 0:00:54]} Ra4 {[%emt 0:00:25][%csl LRa3,LRa5]} 35. Nb3 {[%emt 0:00:05]} Rxa3 {[%emt 0:00:05]} 36. Re1 {[%emt 0:00:34]} Ra8 {[%emt 0:01:36] Inhibits Re8.} 37. Re2 {[%emt 0:00:32]} h5 {[%emt 0:00:59]} 38. Kg2 {[%emt 0:00:08]} b4 {[%emt 0:00:32]} 39. Kf3 {[%emt 0:00:18]} Be7 {[%emt 0:00:49]} 40. Re4 {[%emt 0:00:56]} Ra2 {[%emt 0:01:37]} 41. h3 {[%emt 0:06:47]} Rb2 {[%emt 0:05:52]} 42. g4 {[%emt 0:04:53]} (42. Re2 $17 {is a better defense.} Rb1 43. Nd2) 42... Kh7 {[%emt 0:04:11]} 43. gxh5 {[%emt 0:04:09]} Kh6 {[%emt 0:00:48]} 44. f6 {[%emt 0:00:40]} Bxf6 {[%emt 0:05:57]} 45. Rxb4 {[%emt 0:00:05]} Rcc2 {[%emt 0:01:51]} 46. Rb7 {[%emt 0:03:34]} (46. Rb5 {was called for.}) 46... Rf2+ {[%emt 0:08:01]} (46... Kxh5 47. Rxf7 Rg2 48. Ke4 $15) 47. Ke4 {[%emt 0:00:23]} Bg5 {[%emt 0:00:50]} ({And not} 47... Kxh5 48. Rxf7 Rbe2+ 49. Kd5 $15) 48. Rbd7 {[%emt 0:04:36]} Rbe2+ {[%emt 0:03:04]} 49. Kd5 {[%emt 0:00:05]} Kxh5 {[%emt 0:00:56]} 50. Nd4 {[%emt 0:04:00]} Re3 {[%emt 0:00:35]} 51. Rd1 {[%emt 0:04:25]} (51. Rxe3 $17 {keeps fighting.} Bxe3 52. Ke4) 51... Rxh3 {[%emt 0:00:25]} 52. Nc6 {[%emt 0:00:18]} Rf5+ {[%emt 0:00:25]} 53. Kc4 {[%emt 0:00:31]} Bf6 {[%emt 0:01:12] And now ...Rc3+ would win.} 54. Ne7 $2 {[%emt 0:00:49]} (54. Nd8) 54... Rh4+ {[%emt 0:00:32] Weighted Error Value: White=0.28 (precise) /Black=0.10 (very precise)} 0-1

[Event "FRA-ch Teams Top 16-Haute 2022"]
[Site "Chartres"]
[Date "2022.06.19"]
[Round "11.30"]
[White "Maze, Sebastien"]
[Black "Cornette, Matthieu"]
[Result "1/2-1/2"]
[ECO "D35"]
[WhiteElo "2519"]
[BlackElo "2570"]
[Annotator "TA"]
[PlyCount "65"]
[EventDate "2022.06.16"]
[EventType "team-tourn"]
[EventCountry "FRA"]
[SourceTitle "playchess.com"]
[Source "ChessBase"]
[SourceQuality "1"]
[TimeControl "40/5400+30:1800+30"]

{[%evp 13,65,10,13,27,25,28,28,28,28,25,26,29,27,20,8,18,42,16,42,18,59,50,114,97,102,110,102,71,84,76,83,81,93,27,26,27,49,35,49,0,0,-38,43,-114,-126,-115,-120,-109,-24,-24,0,-125,0,-28]} 1. c4 {[%emt 0:01:10]} e6 {[%emt 0:00:40]} 2. Nc3 {[%emt 0:00:34]} d5 {[%emt 0:00:49]} 3. d4 {[%emt 0:00:06]} Nf6 {[%emt 0:00:45]} 4. cxd5 {[%emt 0:00:05]} exd5 {[%emt 0:00:06]} 5. Bg5 {[%emt 0:00:29]} c6 {[%emt 0:01:37]} 6. e3 {[%emt 0:00:07]} Bd6 {[%emt 0:01:22]} 7. Bd3 {[%emt 0:03:31]} O-O {[%emt 0:05:03]} 8. Nge2 {[%emt 0:05:29] D35: Queen's Gambit Declined: Exchange Variation.} Re8 {[%emt 0:00:19]} 9. Qc2 {[%emt 0:04:31][%cal Od3h7]} h6 {[%emt 0:00:04]} 10. Bf4 {[%emt 0:03:53] White has an edge.} a5 {[%emt 0:03:39]} 11. h3 {[%emt 0:05:22]} Na6 {[%emt 0:02:17]} 12. a3 {[%emt 0:00:15] Against Nb4} Nc7 {[%emt 0:01:40] [#]} 13. Bxd6 $146 {[%emt 0:03:34]} ({Predecessor:} 13. O-O Ne6 14. Bxd6 Qxd6 15. f3 c5 16. Rae1 Bd7 17. dxc5 Qxc5 18. Qd2 d4 19. exd4 Nxd4 {1-0 (62) Bluebaum,M (2647)-Pacan Milej,K (2348) Chess.com INT 2020}) 13... Qxd6 {[%emt 0:00:14]} 14. O-O {[%emt 0:00:06]} Bd7 {[%emt 0:20:19]} 15. Ng3 {[%emt 0:02:24][%cal Be2g3,Bg3f1,Bf1h2,Bh2f3][%mdl 32]} h5 {[%emt 0:04:06]} 16. Rfe1 {[%emt 0:08:30]} h4 {[%emt 0:01:53]} 17. Nf1 {[%emt 0:00:08]} Nh5 {[%emt 0:02:46]} ({Better is} 17... b6 $14) 18. Nh2 $16 {[%emt 0:03:48]} g6 {[%emt 0:23:34]} 19. Nf3 {[%emt 0:05:22]} Ng7 {[%emt 0:00:15]} 20. e4 {[%emt 0:04:39]} ({Don't play} 20. Nxh4 Qf6 21. Nf3 Bxh3 $14) 20... Nce6 {[%emt 0:02:49]} 21. e5 {[%emt 0:01:04]} Qe7 {[%emt 0:00:08]} 22. Qd2 {[%emt 0:02:19]} Kh7 {[%emt 0:02:29]} 23. g3 {[%emt 0:05:58]} (23. Rac1 $16) 23... hxg3 $11 {[%emt 0:01:47]} 24. fxg3 {[%emt 0:00:05]} Rh8 {[%emt 0:01:05]} 25. h4 {[%emt 0:11:27]} Kg8 {[%emt 0:00:48]} 26. Nd1 {[%emt 0:00:09]} (26. Rf1 $14) 26... Nh5 {[%emt 0:05:05]} 27. Kg2 {[%emt 0:07:22]} c5 {[%emt 0:03:57]} (27... f5 $15 28. Nf2 c5) 28. Nf2 $2 {[%emt 0:02:52] [#]} (28. dxc5 $1 $14 {stays ahead.} Nxc5 29. Bc2 (29. Nf2 Nb3 $17)) 28... Nxd4 $17 {[%emt 0:02:20]} 29. Nxd4 {[%emt 0:00:09]} cxd4 {[%emt 0:00:01]} 30. Nh1 {[%emt 0:07:35]} Qe6 {[%emt 0:04:29]} (30... Re8 $17 {[%cal Oh5g3] aiming for ...Nxg3!} 31. Kg1 Qe6) 31. Nf2 $11 {[%emt 0:00:22] Active counter play!} Qe7 {[%emt 0:00:02]} (31... Rf8 $11) 32. Nh1 $1 $17 {[%emt 0:00:04]} Qe6 {[%emt 0:00:54]} (32... Re8 $17 {[%cal Oh5g3] And now ...Nxg3! would win.} 33. Kg1 Qe6) 33. Nf2 {[%emt 0:00:43] Weighted Error Value: White=0.19 (very precise) /Black=0.26 (precise)} 1/2-1/2